bitfinex-derivatives/quotes_SOLF0:USTF0_20250706
["timestamp","ask_amount","ask_price","bid_price","bid_amount"]
[1751829326943,6.5943,151.63,151.6,3.11608636]
[1751829327750,9.71058636,151.62,151.58,9.71208636]
[1751829328247,3.11608636,151.61,151.56,44.98]
[1751829328451,3.11608636,151.6,151.56,48.09608636]
[1751829328648,3.11608636,151.6,151.56,3.11608636]
[1751829329250,9.71218636,151.59,151.56,3.11608636]
[1751829329448,234.84,151.63,151.53,2.1676]
[1751829329449,3.11608636,151.58,151.53,2.1676]
[1751829329653,3.11608636,151.57,151.53,5.28368636]
[1751829329951,3.11608636,151.57,151.53,3.11608636]
[1751829330549,3.11608636,151.58,151.54,3.11608636]
[1751829330948,3.11608636,151.59,151.55,9.71348636]
[1751829331652,6.596,151.59,151.56,3.11608636]
[1751829332156,6.5952,151.61,151.57,3.11608636]
[1751829332452,9.71128636,151.61,151.57,3.11608636]
[1751829333556,6.5953,151.6,151.57,9.71248636]
[1751829338958,6.5953,151.6,151.58,3.11608636]
[1751829340359,6.5953,151.6,151.57,3.11608636]
[1751829340562,4.51104979,151.59,151.57,3.11608636]
[1751829340761,6.5953,151.6,151.57,3.11608636]
[1751829340962,4.52371779,151.59,151.57,3.11608636]
[1751829341260,6.5953,151.6,151.57,3.11608636]
[1751829341461,4.52348924,151.59,151.57,3.11608636]
[1751829341661,6.5953,151.6,151.57,3.11608636]
[1751829341960,4.52494875,151.59,151.57,3.11608636]
[1751829342161,6.5953,151.6,151.57,3.11608636]
[1751829344569,6.5953,151.6,151.57,9.71258636]
[1751829345061,51.5746,151.62,151.59,3.11608636]
[1751829345368,4.52459884,151.61,151.59,3.11608636]
[1751829345665,51.5746,151.62,151.59,3.11608636]
[1751829345867,51.5746,151.62,151.58,6.596]
[1751829345868,6.5941,151.63,151.61,3.11608636]
[1751829346065,4.5246499,151.62,151.61,3.11608636]
[1751829347361,54.17757997,151.66,151.61,9.71088636]
[1751829347566,12.70292471,151.65,151.64,3.11608636]
[1751829348667,19.29622471,151.65,151.64,3.11608636]
[1751829349368,12.70292471,151.65,151.64,3.11608636]
[1751829350666,12.70292471,151.65,151.63,3.11608636]
[1751829350867,12.70292471,151.64,151.62,11.46238379]
[1751829351067,4.52465732,151.63,151.62,11.46238379]
[1751829354372,6.5931,151.65,151.62,11.46238379]
[1751829354562,16.79537588,151.64,151.63,6.594]
[1751829355573,16.79537588,151.64,151.62,11.46238379]
[1751829355773,51.5529,151.66,151.62,11.46238379]
[1751829355969,16.8067207,151.65,151.57,6.8355]
[1751829356165,16.8067207,151.64,151.6,11.46318379]
[1751829356368,44.96,151.66,151.6,11.46318379]
[1751829356569,6.5938,151.64,151.6,11.46318379]
[1751829361468,6.5938,151.64,151.61,6.5947]
[1751829362682,6.5938,151.64,151.6,11.46318379]
[1751829362980,21.70396715,151.63,151.55,4.86808379]
[1751829363172,16.83588336,151.62,151.55,4.86808379]
[1751829363368,16.83588336,151.61,151.55,4.86808379]
[1751829363575,4.5769199,151.6,151.55,4.86808379]
[1751829363769,4.86808379,151.63,151.55,4.86808379]
[1751829363974,6.5955,151.6,151.56,6.5968]
[1751829372484,6.5958,151.59,151.55,11.46538379]
[1751829372985,6.5958,151.59,151.56,6.597]
[1751829374787,6.5958,151.59,151.57,3.11836007]
[1751829377188,9.71396007,151.6,151.57,3.11836007]
[1751829378385,6.5956,151.6,151.57,3.11836007]
[1751829379289,9.71336007,151.61,151.57,9.71476007]
[1751829379485,12.71876717,151.6,151.58,3.11836007]
[1751829379683,3.11836007,151.61,151.58,3.11836007]
[1751829379988,4.50674857,151.6,151.58,3.11836007]
[1751829380188,3.11836007,151.61,151.58,3.11836007]
[1751829380384,4.5067648,151.6,151.58,3.11836007]
[1751829380585,6.5953,151.6,151.58,3.11836007]
[1751829382887,6.5953,151.6,151.57,3.11836007]
[1751829386288,6.5957,151.59,151.57,3.11836007]
[1751829394793,9.21757997,151.63,151.58,3.11836007]
[1751829395096,3.11836007,151.59,151.55,3.11836007]
[1751829395296,4.51687457,151.58,151.55,3.11836007]
[1751829395492,6.5964,151.58,151.55,3.11836007]
[1751829396297,6.5959,151.59,151.56,3.11836007]
[1751829400801,6.5959,151.59,151.57,3.11836007]
[1751829400802,4.51876625,151.58,151.57,3.11836007]
[1751829401100,11.11506625,151.58,151.56,3.11836007]
[1751829401300,6.5963,151.58,151.55,9.71576007]
[1751829401601,6.5959,151.59,151.55,9.71576007]
[1751829401802,4.51955111,151.58,151.56,3.11836007]
[1751829402102,6.5959,151.59,151.56,3.11836007]
[1751829404106,12.77122566,151.58,151.56,3.11836007]
[1751829404306,6.5959,151.59,151.56,3.11836007]
[1751829404604,12.77237528,151.58,151.56,3.11836007]
[1751829404799,6.5959,151.59,151.56,3.11836007]
[1751829405004,12.77237528,151.58,151.56,3.11836007]
[1751829405305,6.5959,151.59,151.56,3.11836007]
[1751829405504,12.77127354,151.58,151.56,3.11836007]
[1751829405704,6.5959,151.59,151.56,3.11836007]
[1751829405905,12.77177538,151.58,151.56,3.11836007]
[1751829406202,6.5959,151.59,151.56,3.11836007]
[1751829406404,12.77176462,151.58,151.56,3.11836007]
[1751829406602,6.5959,151.59,151.56,3.11836007]
[1751829406804,12.77591964,151.58,151.56,3.11836007]
[1751829407004,6.5959,151.59,151.56,3.11836007]
[1751829407208,12.77591964,151.58,151.56,3.11836007]
[1751829407504,4.51403029,151.57,151.56,3.11836007]
[1751829409104,6.5959,151.59,151.56,3.11836007]
[1751829409306,8.26552997,151.58,151.56,3.11836007]
[1751829409606,4.51602768,151.57,151.56,3.11836007]
[1751829410105,6.5959,151.59,151.56,3.11836007]
[1751829410306,12.78255882,151.58,151.56,3.11836007]
[1751829410502,4.51638734,151.57,151.56,3.11836007]
[1751829411106,6.5959,151.59,151.56,3.11836007]
[1751829411307,12.78104356,151.58,151.56,3.11836007]
[1751829411509,6.5959,151.59,151.56,3.11836007]
[1751829411806,12.78089425,151.58,151.56,3.11836007]
[1751829411999,6.5959,151.59,151.56,3.11836007]
[1751829412202,12.78089425,151.58,151.56,3.11836007]
[1751829412400,6.5959,151.59,151.56,3.11836007]
[1751829412598,12.78084147,151.58,151.56,3.11836007]
[1751829412807,6.5959,151.59,151.56,3.11836007]
[1751829413009,12.7853144,151.58,151.56,3.11836007]
[1751829413203,4.52027505,151.57,151.56,3.11836007]
[1751829417205,4.52027505,151.57,151.56,9.71536007]
[1751829417412,4.5649,151.62,151.56,3.11836007]
[1751829417606,12.78784863,151.61,151.59,3.11836007]
[1751829417909,23.58543232,151.6,151.58,3.11836007]
[1751829418106,4.20198369,151.59,151.58,3.11836007]
[1751829418509,16.98761515,151.59,151.58,3.11836007]
[1751829419708,8.72237525,151.59,151.58,3.11836007]
[1751829420407,20.09587881,151.59,151.48,44.96]
[1751829420611,3.11836007,151.55,151.51,3.11836007]
[1751829421014,3.11836007,151.55,151.48,49.3138]
[1751829421213,3.11836007,151.55,151.51,3.11836007]
[1751829422014,6.598,151.54,151.51,9.71736007]
[1751829422310,3.11836007,151.56,151.52,3.11836007]
[1751829422514,4.1949097,151.55,151.53,3.11836007]
[1751829422714,9.71576007,151.56,151.53,3.11836007]
[1751829422916,4.19325282,151.55,151.53,3.11836007]
[1751829423114,9.71576007,151.56,151.53,3.11836007]
[1751829423313,4.19327224,151.55,151.53,3.11836007]
[1751829423514,6.5976,151.55,151.53,3.11836007]
[1751829423914,6.5967,151.57,151.54,3.11836007]
[1751829424106,16.98255412,151.56,151.54,3.11836007]
[1751829424310,6.5967,151.57,151.54,3.11836007]
[1751829424606,8.7270115,151.56,151.54,3.11836007]
[1751829424807,6.597,151.56,151.53,6.5983]
[1751829427220,6.5968,151.57,151.53,6.5983]
[1751829427517,4.19146186,151.56,151.52,4.87403895]
[1751829427716,44.96,151.58,151.52,4.87403895]
[1751829427919,8.66331636,151.57,151.52,4.87403895]
[1751829428118,51.5564,151.58,151.54,6.5975]
[1751829428319,8.64151099,151.57,151.52,4.87403895]
[1751829428519,51.5564,151.58,151.54,4.87403895]
[1751829428721,8.64083739,151.57,151.54,4.87403895]
[1751829428922,44.96,151.58,151.54,4.87403895]
[1751829430522,51.5563,151.58,151.55,6.5975]
[1751829431714,6.5954,151.6,151.57,6.5966]
[1751829431920,13.78247997,151.62,151.56,4.87403895]
[1751829431921,8.6421408,151.59,151.56,4.87403895]
[1751829432123,4.17012863,151.58,151.56,4.87403895]
[1751829432321,44.94,151.62,151.56,4.87403895]
[1751829432322,6.5952,151.61,151.58,6.5959]
[1751829432521,16.89018274,151.6,151.58,6.5959]
[1751829432823,4.17049628,151.59,151.58,6.5959]
[1751829433423,6.5952,151.61,151.58,6.5959]
[1751829433624,4.1809559,151.6,151.58,6.5959]
[1751829433822,6.5952,151.61,151.58,6.5959]
[1751829434022,4.18092301,151.6,151.58,6.5959]
[1751829434218,6.5952,151.61,151.58,6.5959]
[1751829434422,4.18043052,151.6,151.58,6.5959]
[1751829434624,6.5952,151.61,151.55,4.87403895]
[1751829434625,4.87403895,151.61,151.55,4.87403895]
[1751829434925,16.90673009,151.6,151.53,7.12533895]
[1751829435127,16.90673009,151.59,151.53,7.12533895]
[1751829435324,10.77691729,151.58,151.55,6.5974]
[1751829435623,6.5964,151.58,151.55,6.5974]
[1751829435823,4.87403895,151.59,151.53,7.12533895]
[1751829436016,16.94292411,151.58,151.53,4.87403895]
[1751829436217,8.68972504,151.57,151.53,4.87403895]
[1751829436417,4.1803867,151.56,151.51,44.96]
[1751829436721,4.17979109,151.55,151.51,44.96]
[1751829436925,49.81403895,151.57,151.49,7.06713895]
[1751829437226,16.93960427,151.56,151.49,7.06713895]
[1751829437527,8.6879692,151.55,151.51,6.5992]
[1751829437824,49.81403895,151.57,151.51,6.5992]
[1751829438023,6.5979,151.55,151.51,6.5992]
[1751829442624,6.598,151.54,151.51,6.5992]
[1751829444232,4.87403895,151.55,151.49,6.6001]
[1751829445021,6.5981,151.54,151.5,6.5995]
[1751829448236,6.5983,151.53,151.5,6.5995]
[1751829452436,6.5981,151.54,151.5,6.5995]
[1751829452840,44.94,151.57,151.52,4.87403895]
[1751829453026,16.72942434,151.56,151.52,4.87403895]
[1751829453227,44.94,151.57,151.52,4.87403895]
[1751829453434,4.09802295,151.56,151.53,6.5981]
[1751829453741,6.597,151.56,151.53,6.5981]
[1751829454133,6.597,151.56,151.54,6.5979]
[1751829454936,51.5369,151.57,151.54,6.5979]
[1751829455139,4.09796544,151.56,151.54,6.5979]
[1751829455338,51.5369,151.57,151.54,6.5979]
[1751829456835,6.597,151.56,151.53,6.5982]
[1751829459339,9.21466355,151.63,151.54,4.87403895]
[1751829459538,16.80671601,151.62,151.54,4.87403895]
[1751829459733,16.80671601,151.61,151.54,4.87403895]
[1751829460039,23.40231601,151.6,151.56,6.597]
[1751829460342,6.5956,151.6,151.56,6.597]
[1751829460841,4.87403895,151.61,151.52,44.96]
[1751829461041,4.87403895,151.59,151.52,49.83403895]
[1751829461241,8.24637676,151.58,151.52,49.83403895]
[1751829461539,4.11875638,151.57,151.52,49.83403895]
[1751829461739,4.87403895,151.59,151.52,49.83403895]
[1751829461940,8.57105031,151.58,151.52,49.83403895]
[1751829462141,6.5969,151.57,151.54,6.5977]
[1751829469141,6.5963,151.58,151.55,6.5975]
[1751829472850,6.5959,151.59,151.55,6.5975]
[1751829473050,4.87403895,151.61,151.55,6.5975]
[1751829473250,16.86097893,151.6,151.55,6.5975]
[1751829473448,16.86097893,151.59,151.55,6.5975]
[1751829473647,10.72966853,151.58,151.55,6.5975]
[1751829473948,6.5962,151.58,151.55,6.5975]
[1751829477554,6.5962,151.58,151.54,6.5977]
[1751829478846,6.5962,151.58,151.55,3.11886706]
[1751829479253,6.5962,151.58,151.55,9.71626706]
[1751829481553,6.5962,151.58,151.55,3.11886706]
[1751829483755,3.11886706,151.59,151.55,3.11886706]
[1751829483955,3.11886706,151.57,151.52,44.96]
[1751829484159,4.15689638,151.56,151.54,3.11886706]
[1751829484351,3.11886706,151.58,151.54,3.11886706]
[1751829484550,19.04217199,151.57,151.54,3.11886706]
[1751829484755,6.5969,151.57,151.54,3.11886706]
[1751829486757,3.11886706,151.58,151.54,3.11886706]
[1751829486961,8.62757307,151.57,151.55,3.11886706]
[1751829487262,3.11886706,151.59,151.55,3.11886706]
[1751829487453,20.02667559,151.58,151.54,3.11886706]
[1751829487760,8.62779277,151.57,151.54,3.11886706]
[1751829487959,3.11886706,151.59,151.55,3.11886706]
[1751829488159,6.5968,151.57,151.55,3.11886706]
[1751829488760,6.5968,151.57,151.54,3.11886706]
[1751829489360,6.5973,151.56,151.54,3.11886706]
[1751829489654,3.11886706,151.55,151.48,44.96]
[1751829489859,13.87488565,151.54,151.5,3.11886706]
[1751829490065,2.1551,151.58,151.53,3.11886706]
[1751829490357,20.02710411,151.57,151.53,3.11886706]
[1751829490562,6.5977,151.55,151.53,3.11886706]
[1751829490761,11.50816355,151.6,151.54,3.11886706]
[1751829490957,20.02895103,151.59,151.55,3.11886706]
[1751829491163,20.02895103,151.58,151.54,3.11886706]
[1751829491461,16.91008397,151.57,151.54,3.11886706]
[1751829491660,12.43986571,151.56,151.54,3.11886706]
[1751829491864,8.28126422,151.55,151.53,6.598]
[1751829492054,12.33353061,151.59,151.54,3.11886706]
[1751829492259,23.50697328,151.58,151.55,3.11886706]
[1751829492459,16.91037328,151.57,151.55,3.11886706]
[1751829492660,12.43976887,151.56,151.55,3.11886706]
[1751829492965,4.15886001,151.56,151.55,3.11886706]
[1751829494761,4.15886001,151.56,151.55,9.71636706]
[1751829494964,54.17466355,151.61,151.55,3.11886706]
[1751829495265,16.90492865,151.6,151.58,3.11886706]
[1751829495465,16.90492865,151.59,151.58,3.11886706]
[1751829496161,16.90509199,151.59,151.58,3.11886706]
[1751829496759,16.90509199,151.59,151.57,11.46761057]
[1751829496964,12.43301642,151.58,151.57,11.46761057]
[1751829497264,8.28391952,151.58,151.57,11.46761057]
[1751829497767,9.21466355,151.62,151.6,6.5951]
[1751829497964,4.14950221,151.61,151.6,11.46641057]
[1751829500371,9.21466355,151.65,151.62,6.5941]
[1751829500576,9.21466355,151.66,151.62,11.46541057]
[1751829500770,4.5467632,151.65,151.62,4.87131057]
[1751829501073,9.21466355,151.66,151.62,4.87131057]
[1751829501269,4.24136166,151.65,151.62,4.87131057]
[1751829501471,9.21466355,151.66,151.62,4.87131057]
[1751829501670,10.83316875,151.65,151.62,4.87131057]
[1751829501869,6.5934,151.65,151.62,4.87131057]
[1751829502772,6.5936,151.64,151.61,6.5945]
[1751829503773,6.594,151.63,151.6,11.46641057]
[1751829503977,4.87131057,151.65,151.58,4.87131057]
[1751829504274,4.19551388,151.64,151.58,4.87131057]
[1751829504464,6.5949,151.61,151.58,11.46731057]
[1751829505067,6.5946,151.62,151.58,11.46731057]
[1751829507083,6.5946,151.62,151.57,7.23971057]
[1751829507679,14.08597412,151.67,151.6,6.5953]
[1751829507883,4.21956151,151.66,151.6,6.5953]
[1751829508083,10.81286151,151.65,151.61,4.87131057]
[1751829508285,6.5933,151.65,151.61,4.87131057]
[1751829509582,6.5933,151.65,151.62,6.5944]
[1751829511487,6.5937,151.64,151.6,11.46631057]
[1751829515293,6.5937,151.64,151.61,6.5947]
[1751829515691,6.5933,151.65,151.6,4.87131057]
[1751829516393,6.5933,151.65,151.62,6.5944]
[1751829517694,6.5936,151.64,151.61,6.5947]
[1751829520098,6.5933,151.65,151.61,6.5947]
[1751829521892,6.5936,151.64,151.61,6.5947]
[1751829523196,6.5941,151.63,151.6,11.46641057]
[1751829527594,4.87131057,151.66,151.58,4.87131057]
[1751829527801,4.16794373,151.65,151.58,4.87131057]
[1751829528098,4.87131057,151.66,151.58,4.87131057]
[1751829528298,4.16802994,151.65,151.58,4.87131057]
[1751829528494,6.5947,151.62,151.57,2.3684]
[1751829528799,6.5947,151.62,151.58,4.87131057]
[1751829529601,6.5947,151.62,151.59,6.5954]
[1751829535208,4.87131057,151.66,151.58,4.87131057]
[1751829535409,16.57778683,151.65,151.58,4.87131057]
[1751829535600,12.38600415,151.64,151.58,4.87131057]
[1751829535804,4.14764756,151.63,151.6,4.87131057]
[1751829536004,4.19196526,151.66,151.6,4.87131057]
[1751829536208,16.57861813,151.65,151.6,4.87131057]
[1751829536504,6.5942,151.63,151.6,11.46631057]
[1751829537409,6.5937,151.64,151.6,11.46631057]
[1751829537602,56.51476355,151.68,151.61,6.5946]
[1751829537808,16.57797863,151.67,151.61,6.5946]
[1751829538105,6.5934,151.65,151.61,6.5946]
[1751829538302,4.15017823,151.64,151.61,6.5946]
[1751829538505,6.5934,151.65,151.61,6.5946]
[1751829538705,10.74553075,151.64,151.61,6.5946]
[1751829538906,6.5936,151.64,151.61,6.5946]
[1751829539411,4.15412766,151.63,151.61,6.5946]
[1751829539608,6.5936,151.64,151.61,6.5946]
[1751829539809,4.15424818,151.63,151.61,6.5946]
[1751829540013,6.594,151.63,151.6,11.46641057]
[1751829542415,4.18169025,151.62,151.6,11.46641057]
[1751829542617,6.594,151.63,151.6,11.46641057]
[1751829542811,4.18169025,151.62,151.6,11.46641057]
[1751829543012,6.5937,151.64,151.6,11.46641057]
[1751829543212,4.18168931,151.63,151.6,11.46641057]
[1751829543412,4.18168931,151.62,151.6,11.46641057]
[1751829543712,6.594,151.63,151.6,11.46641057]
[1751829543912,4.18098478,151.62,151.6,11.46641057]
[1751829544112,6.594,151.63,151.6,11.46641057]
[1751829544318,4.18165796,151.62,151.6,11.46641057]
[1751829544515,6.594,151.63,151.6,11.46641057]
[1751829544815,4.18203927,151.62,151.6,11.46641057]
[1751829545018,6.594,151.63,151.6,11.46641057]
[1751829545216,4.18203927,151.62,151.6,11.46641057]
[1751829545417,6.594,151.63,151.6,11.46641057]
[1751829545608,4.18246692,151.62,151.6,11.46641057]
[1751829545812,6.594,151.63,151.6,11.46641057]
[1751829546008,4.18246683,151.62,151.6,11.46641057]
[1751829546218,6.594,151.63,151.6,11.46641057]
[1751829546420,4.18226526,151.62,151.6,11.46641057]
[1751829546620,6.594,151.63,151.6,11.46641057]
[1751829546820,4.18226526,151.62,151.6,11.46641057]
[1751829547016,6.594,151.63,151.6,11.46641057]
[1751829547217,4.18226526,151.62,151.6,11.46641057]
[1751829547417,6.594,151.63,151.6,11.46641057]
[1751829547620,4.18226868,151.62,151.6,11.46641057]
[1751829547820,6.594,151.63,151.6,11.46641057]
[1751829548020,4.18226868,151.62,151.6,11.46641057]
[1751829548224,6.594,151.63,151.6,11.46641057]
[1751829548419,4.18227842,151.62,151.6,11.46641057]
[1751829548620,6.594,151.63,151.6,11.46641057]
[1751829548919,4.17139352,151.62,151.61,3.11633544]
[1751829551023,4.17139352,151.62,151.61,9.71123544]
[1751829551617,4.17139352,151.62,151.61,3.11633544]
[1751829553521,3.11633544,151.66,151.61,9.71123544]
[1751829553723,19.78930922,151.65,151.61,9.71123544]
[1751829554020,16.67297378,151.64,151.61,9.71123544]
[1751829554223,12.4657063,151.63,151.61,9.71123544]
[1751829554417,4.17364485,151.62,151.61,9.71123544]
[1751829557326,4.17364485,151.62,151.6,3.11633544]
[1751829557525,8.29470676,151.61,151.58,3.11714823]
[1751829557727,9.21466355,151.64,151.58,3.11714823]
[1751829557927,6.5951,151.61,151.58,9.71396974]
[1751829558221,4.17544163,151.6,151.58,9.71396974]
[1751829558428,6.5955,151.6,151.58,3.11786974]
[1751829558623,3.11786974,151.62,151.58,3.11786974]
[1751829558926,15.58433665,151.61,151.57,3.11786974]
[1751829559127,19.06206691,151.6,151.57,3.11786974]
[1751829559321,4.17317278,151.59,151.57,3.11786974]
[1751829559524,4.17317278,151.58,151.57,3.11786974]
[1751829559722,6.5956,151.6,151.57,3.11786974]
[1751829560017,9.32236833,151.59,151.57,3.11786974]
[1751829560223,4.5837299,151.58,151.57,3.11786974]
[1751829560527,4.5837299,151.58,151.55,44.92]
[1751829560826,4.5837299,151.57,151.55,3.11786974]
[1751829561029,4.5837299,151.56,151.55,3.11786974]
[1751829561528,4.5837299,151.56,151.55,9.71526974]
[1751829561924,4.5837299,151.56,151.53,4.631]
[1751829562132,3.11786974,151.58,151.55,3.11786974]
[1751829562429,9.2777196,151.57,151.55,3.11786974]
[1751829562623,4.58062851,151.56,151.55,3.11786974]
[1751829562826,4.58062851,151.56,151.54,6.5976]
[1751829563021,4.58062851,151.55,151.54,6.5976]
[1751829563227,6.5963,151.58,151.54,6.5976]
[1751829563427,4.52178176,151.57,151.54,6.5976]
[1751829563727,4.52178176,151.56,151.54,6.5976]
[1751829563918,6.5963,151.58,151.54,6.5976]
[1751829564124,4.5217844,151.57,151.54,6.5976]
[1751829564321,4.5217844,151.56,151.54,6.5976]
[1751829564530,6.5963,151.58,151.54,6.5976]
[1751829564725,4.52033349,151.57,151.54,6.5976]
[1751829564931,4.52033349,151.56,151.54,6.5976]
[1751829565130,6.5963,151.58,151.54,6.5976]
[1751829565331,4.52029455,151.57,151.54,6.5976]
[1751829565531,4.52029455,151.56,151.54,6.5976]
[1751829565832,6.5963,151.58,151.54,6.5976]
[1751829566125,4.54592227,151.57,151.54,6.5976]
[1751829566332,4.54592227,151.56,151.54,6.5976]
[1751829566530,6.5967,151.57,151.54,6.5976]
[1751829566734,4.54487726,151.56,151.54,6.5976]
[1751829566935,6.5967,151.57,151.54,6.5976]
[1751829567234,4.54523415,151.56,151.54,6.5976]
[1751829567538,4.87339459,151.6,151.53,7.16939459]
[1751829567539,6.5963,151.58,151.55,6.5974]
[1751829567835,4.52242473,151.57,151.55,6.5974]
[1751829568034,4.52242473,151.56,151.55,6.5974]
[1751829570237,6.5963,151.58,151.55,6.5974]
[1751829570437,4.52193564,151.57,151.55,6.5974]
[1751829570639,6.5963,151.58,151.55,6.5974]
[1751829570842,4.52193564,151.57,151.55,6.5974]
[1751829571035,6.5963,151.58,151.55,6.5974]
[1751829571242,4.52195451,151.57,151.55,6.5974]
[1751829571442,6.5963,151.58,151.55,6.5974]
[1751829571645,4.52077915,151.57,151.55,6.5974]
[1751829571845,6.5963,151.58,151.55,6.5974]
[1751829572143,4.52041532,151.57,151.55,6.5974]
[1751829572445,6.5963,151.58,151.55,6.5974]
[1751829572646,4.52107066,151.57,151.55,6.5974]
[1751829572842,6.5963,151.58,151.55,6.5974]
[1751829573043,4.52124808,151.57,151.55,6.5974]
[1751829573243,6.5963,151.58,151.55,6.5974]
[1751829573441,4.52090484,151.57,151.55,6.5974]
[1751829573642,6.5963,151.58,151.55,6.5974]
[1751829573842,4.52090484,151.57,151.55,6.5974]
[1751829574043,6.5963,151.58,151.55,6.5974]
[1751829574243,4.52094895,151.57,151.55,6.5974]
[1751829574444,6.5963,151.58,151.55,6.5974]
[1751829574643,4.5210602,151.57,151.55,6.5974]
[1751829574941,6.5963,151.58,151.55,6.5974]
[1751829575137,4.52256411,151.57,151.55,6.5974]
[1751829575342,6.5959,151.59,151.56,6.597]
[1751829575549,4.52228027,151.58,151.56,6.597]
[1751829575746,6.5959,151.59,151.56,6.597]
[1751829575947,4.52176677,151.58,151.56,6.597]
[1751829576245,6.5959,151.59,151.56,6.597]
[1751829576545,4.52162196,151.58,151.56,6.597]
[1751829576745,6.5959,151.59,151.56,6.597]
[1751829578852,4.53245301,151.58,151.56,6.597]
[1751829579051,6.5959,151.59,151.56,6.597]
[1751829579251,4.5325369,151.58,151.56,6.597]
[1751829579448,6.5959,151.59,151.56,6.597]
[1751829579649,4.5325369,151.58,151.56,6.597]
[1751829579950,6.5959,151.59,151.56,6.597]
[1751829580148,4.5325369,151.58,151.56,6.597]
[1751829580449,49.364,151.63,151.55,4.87339459]
[1751829580753,17.37504877,151.62,151.55,4.87339459]
[1751829580941,9.13675999,151.61,151.55,4.87339459]
[1751829581140,4.53264321,151.6,151.55,4.87339459]
[1751829581440,4.53264321,151.59,151.55,4.87339459]
[1751829581642,6.5958,151.59,151.56,6.5968]
[1751829581841,4.53264116,151.58,151.56,6.5968]
[1751829582046,6.5958,151.59,151.57,6.5966]
[1751829582243,4.53264039,151.58,151.57,6.5966]
[1751829582448,4.53284882,151.58,151.57,6.5966]
[1751829582844,4.53284882,151.58,151.57,9.71470455]
[1751829583049,6.5955,151.6,151.57,9.71470455]
[1751829583245,4.54358857,151.59,151.57,9.71470455]
[1751829583451,6.5958,151.59,151.57,3.11810455]
[1751829584750,4.5442949,151.58,151.57,3.11810455]
[1751829586457,6.5954,151.6,151.57,9.71470455]
[1751829586753,4.54466521,151.59,151.57,3.11810455]
[1751829586953,4.54479493,151.58,151.56,3.11810455]
[1751829587154,6.5957,151.59,151.56,3.11810455]
[1751829587353,4.54490352,151.58,151.56,3.11810455]
[1751829587553,6.5957,151.59,151.56,3.11810455]
[1751829587753,4.54511739,151.58,151.56,3.11810455]
[1751829588055,6.5957,151.59,151.56,9.71480455]
[1751829588250,6.5957,151.59,151.57,3.11810455]
[1751829589049,4.55636875,151.58,151.57,3.11810455]
[1751829589248,4.55636875,151.58,151.56,9.71480455]
[1751829589446,6.5957,151.59,151.56,9.71480455]
[1751829589656,4.55675461,151.58,151.56,9.71480455]
[1751829589954,6.5957,151.59,151.56,9.71480455]
[1751829590155,4.55675461,151.58,151.56,9.71480455]
[1751829590350,6.5957,151.59,151.56,9.71480455]
[1751829590554,4.55717597,151.58,151.56,9.71480455]
[1751829590754,6.5957,151.59,151.56,9.71480455]
[1751829590955,4.55717599,151.58,151.56,9.71480455]
[1751829591151,6.5957,151.59,151.56,9.71480455]
[1751829591351,4.55738417,151.58,151.56,9.71480455]
[1751829591552,6.5957,151.59,151.56,9.71480455]
[1751829591753,4.55763579,151.58,151.56,9.71480455]
[1751829591953,6.5957,151.59,151.56,9.71480455]
[1751829592154,4.55763579,151.58,151.56,9.71480455]
[1751829592354,6.5957,151.59,151.56,9.71480455]
[1751829592558,4.55813675,151.58,151.56,9.71480455]
[1751829592855,6.5962,151.58,151.55,9.71540455]
[1751829594659,6.5962,151.58,151.56,3.11810455]
[1751829597358,4.55057377,151.57,151.56,3.11810455]
[1751829597662,4.55075465,151.57,151.56,3.11810455]
[1751829600564,4.55075465,151.57,151.55,6.5973]
[1751829600766,6.5962,151.58,151.55,9.71629381]
[1751829600964,4.554307,151.57,151.56,3.11899381]
[1751829601163,4.554307,151.57,151.56,9.71599381]
[1751829602363,4.55723286,151.57,151.56,9.71599381]
[1751829602755,4.55723286,151.57,151.56,3.11899381]
[1751829602957,4.55723286,151.57,151.53,2.296]
[1751829603167,3.11899381,151.55,151.51,44.92]
[1751829603365,9.71808652,151.55,151.51,48.04048652]
[1751829603564,6.5976,151.55,151.52,3.12048652]
[1751829603763,4.55927806,151.54,151.51,44.92]
[1751829603966,6.5967,151.57,151.53,9.71878652]
[1751829604169,17.30996091,151.56,151.54,3.12048652]
[1751829604466,7.68029107,151.55,151.47,2.2104]
[1751829604669,12.11617181,151.54,151.5,3.12048652]
[1751829604867,4.55980455,151.53,151.5,3.12048652]
[1751829605064,4.55980455,151.52,151.5,3.12048652]
[1751829605261,4.55980455,151.51,151.5,3.12048652]